[Event "*** Titled Tuesday Blitz"]
[Site "Chess.com"]
[Date "2019.01.01"]
[Round "10"]
[White "pedroholly22"]
[Black "MerdeNoms943"]
[Result "0-1"]
[WhiteElo "2275"]
[BlackElo "2266"]
[TimeControl "180+2"]
[EndTime "15:21:52 PST"]
[Termination "MerdeNoms943 won by resignation"]

1. e4 {[%clk 0:03:01.9]} 1... d6 {[%clk 0:03:00]} 2. d4 {[%clk 0:03:00.6]} 2...
Nf6 {[%clk 0:03:00.7]} 3. Nc3 {[%clk 0:03:00.6]} 3... g6 {[%clk 0:03:02.3]} 4.
f3 {[%clk 0:03:00.8]} 4... c6 {[%clk 0:03:02.6]} 5. Be3 {[%clk 0:03:01.7]} 5...
Nbd7 {[%clk 0:02:58.2]} 6. Qd2 {[%clk 0:03:01.8]} 6... b5 {[%clk 0:02:52.8]} 7.
a3 {[%clk 0:03:01.9]} 7... a5 {[%clk 0:02:37.6]} 8. Nge2 {[%clk 0:03:01.7]} 8...
Bg7 {[%clk 0:02:33]} 9. g4 {[%clk 0:03:00.8]} 9... Ba6 {[%clk 0:02:19.1]} 10. g5
{[%clk 0:02:52.7]} 10... Nh5 {[%clk 0:02:14.6]} 11. Nd1 {[%clk 0:02:52.8]} 11...
e5 {[%clk 0:01:52.9]} 12. c3 {[%clk 0:02:48.4]} 12... O-O {[%clk 0:01:42.5]} 13.
Ng3 {[%clk 0:02:47.5]} 13... Nf4 {[%clk 0:01:40.5]} 14. Bxf4 {[%clk 0:02:43.9]}
14... exf4 {[%clk 0:01:42.4]} 15. Qxf4 {[%clk 0:02:44.6]} 15... f6 {[%clk
0:01:27.5]} 16. Qxd6 {[%clk 0:02:42.2]} 16... fxg5 {[%clk 0:01:28.8]} 17. e5
{[%clk 0:02:32.9]} 17... Re8 {[%clk 0:01:15.3]} 18. Ne4 {[%clk 0:02:30]} 18...
Bb7 {[%clk 0:00:49]} 19. Bh3 {[%clk 0:02:18.8]} 19... g4 {[%clk 0:00:49]} 20.
Bxg4 {[%clk 0:02:16.2]} 20... Qh4+ {[%clk 0:00:50]} 21. Ndf2 {[%clk 0:02:13]}
21... Nxe5 {[%clk 0:00:38.3]} 22. dxe5 {[%clk 0:02:11.6]} 22... Bxe5 {[%clk
0:00:40.2]} 23. Qd7 {[%clk 0:02:10.6]} 23... Re7 {[%clk 0:00:37.5]} 24. Qd2
{[%clk 0:02:06.5]} 24... h5 {[%clk 0:00:37.4]} 25. Bh3 {[%clk 0:01:58.3]} 25...
c5 {[%clk 0:00:38.8]} 26. O-O-O {[%clk 0:01:52.8]} 26... Bf4 {[%clk 0:00:40]}
27. Kb1 {[%clk 0:01:49.8]} 27... Bxd2 {[%clk 0:00:40.6]} 28. Rxd2 {[%clk
0:01:50.3]} 28... Bxe4+ {[%clk 0:00:38]} 29. fxe4 {[%clk 0:01:50.9]} 29... Rf8
{[%clk 0:00:39.7]} 30. Rf1 {[%clk 0:01:37.4]} 30... Rxf2 {[%clk 0:00:39]} 31.
Rdxf2 {[%clk 0:01:38.2]} 31... Qxh3 {[%clk 0:00:38.7]} 32. Rd1 {[%clk
0:01:33.5]} 32... Qh4 {[%clk 0:00:33.7]} 33. Rfd2 {[%clk 0:01:31]} 33... Qxe4+
{[%clk 0:00:34.1]} 34. Ka2 {[%clk 0:01:31.6]} 34... b4 {[%clk 0:00:35.3]} 35.
Rd5 {[%clk 0:01:19.4]} 35... Qc4+ {[%clk 0:00:29.8]} 36. Kb1 {[%clk 0:01:18.7]}
36... bxc3 {[%clk 0:00:29.6]} 37. Rd8+ {[%clk 0:01:14.3]} 37... Kg7 {[%clk
0:00:29.9]} 38. R8d6 {[%clk 0:01:14.5]} 38... c2+ {[%clk 0:00:30.9]} 39. Kc1
{[%clk 0:00:18.5]} 39... cxd1=Q+ {[%clk 0:00:29.2]} 40. Kxd1 {[%clk 0:00:17.1]}
40... Qb3+ {[%clk 0:00:24.4]} 41. Kc1 {[%clk 0:00:17.4]} 41... Re1+ {[%clk
0:00:22.9]} 0-1

[Event "*** Titled Tuesday Blitz"]
[Site "Chess.com"]
[Date "2019.01.01"]
[Round "10"]
[White "j2806"]
[Black "aRk_iN"]
[Result "0-1"]
[WhiteElo "1721"]
[BlackElo "2051"]
[TimeControl "180+2"]
[EndTime "15:21:56 PST"]
[Termination "aRk_iN won on time"]

1. e4 {[%clk 0:03:01.9]} 1... c6 {[%clk 0:03:00.8]} 2. d4 {[%clk 0:03:00.9]}
2... d5 {[%clk 0:03:01.6]} 3. exd5 {[%clk 0:03:01.7]} 3... cxd5 {[%clk
0:03:02.3]} 4. Bd3 {[%clk 0:03:02.2]} 4... Nc6 {[%clk 0:03:01.8]} 5. c3 {[%clk
0:02:52.4]} 5... g6 {[%clk 0:03:02.4]} 6. h3 {[%clk 0:02:44.2]} 6... Bf5 {[%clk
0:03:02.1]} 7. Nf3 {[%clk 0:02:44.2]} 7... Bxd3 {[%clk 0:03:02.2]} 8. Qxd3
{[%clk 0:02:44.7]} 8... Bg7 {[%clk 0:03:02.6]} 9. O-O {[%clk 0:02:44.7]} 9...
Nf6 {[%clk 0:03:03.7]} 10. Re1 {[%clk 0:02:35.4]} 10... O-O {[%clk 0:03:04.3]}
11. Bf4 {[%clk 0:02:25.2]} 11... e6 {[%clk 0:02:57.4]} 12. Ne5 {[%clk
0:02:23.4]} 12... Nd7 {[%clk 0:02:31.2]} 13. Nxd7 {[%clk 0:02:08.7]} 13... Qxd7
{[%clk 0:02:31.2]} 14. Nd2 {[%clk 0:02:04.6]} 14... Rfc8 {[%clk 0:02:22.4]} 15.
Nf3 {[%clk 0:02:02.5]} 15... a6 {[%clk 0:02:07.8]} 16. Ne5 {[%clk 0:02:02.1]}
16... Nxe5 {[%clk 0:02:08.4]} 17. Bxe5 {[%clk 0:02:02.3]} 17... b5 {[%clk
0:02:07]} 18. Re3 {[%clk 0:01:42.1]} 18... a5 {[%clk 0:02:01]} 19. Qd2 {[%clk
0:01:28]} 19... Bf8 {[%clk 0:01:50.8]} 20. Rc1 {[%clk 0:01:23.2]} 20... b4
{[%clk 0:01:50]} 21. cxb4 {[%clk 0:01:22.4]} 21... axb4 {[%clk 0:01:51]} 22.
Rxc8 {[%clk 0:01:17.1]} 22... Qxc8 {[%clk 0:01:34.8]} 23. b3 {[%clk 0:01:08.8]}
23... Qa6 {[%clk 0:01:35.4]} 24. Re2 {[%clk 0:00:53.9]} 24... Rc8 {[%clk
0:01:36.1]} 25. Qb2 {[%clk 0:00:31.2]} 25... Be7 {[%clk 0:01:29.6]} 26. Rc2
{[%clk 0:00:27.9]} 26... f6 {[%clk 0:01:21.1]} 27. Bf4 {[%clk 0:00:23.2]} 27...
g5 {[%clk 0:00:40.6]} 28. Bd2 {[%clk 0:00:19.3]} 28... Bd6 {[%clk 0:00:40.7]}
29. Rxc8+ {[%clk 0:00:18.3]} 29... Qxc8 {[%clk 0:00:41.5]} 30. Qc1 {[%clk
0:00:19.3]} 30... Qa6 {[%clk 0:00:23.8]} 31. Qc2 {[%clk 0:00:16.3]} 31... Kg7
{[%clk 0:00:21.1]} 32. Be1 {[%clk 0:00:09.8]} 32... Qb7 {[%clk 0:00:16.8]} 33.
Qd2 {[%clk 0:00:06.6]} 33... Qb6 {[%clk 0:00:17.1]} 34. Kh1 {[%clk 0:00:04]}
34... Qc7 {[%clk 0:00:17.2]} 35. f3 {[%clk 0:00:03.6]} 35... Qb7 {[%clk
0:00:16.7]} 36. Qe2 {[%clk 0:00:03.7]} 36... Kf7 {[%clk 0:00:14.4]} 37. Bd2
{[%clk 0:00:02.8]} 37... Qa7 {[%clk 0:00:13.8]} 38. Qd3 {[%clk 0:00:03.7]} 38...
f5 {[%clk 0:00:12.9]} 39. Qc2 {[%clk 0:00:03.7]} 39... Qxd4 {[%clk 0:00:10.1]}
0-1

[Event "*** Titled Tuesday Blitz"]
[Site "Chess.com"]
[Date "2019.01.01"]
[Round "10"]
[White "TwentyHourADay"]
[Black "WinnerOleg"]
[Result "1-0"]
[WhiteElo "2281"]
[BlackElo "2359"]
[TimeControl "180+2"]
[EndTime "15:21:57 PST"]
[Termination "TwentyHourADay won by resignation"]

1. e4 {[%clk 0:03:01.9]} 1... c5 {[%clk 0:02:57.8]} 2. b4 {[%clk 0:03:02.7]}
2... cxb4 {[%clk 0:02:58.4]} 3. Nf3 {[%clk 0:03:03.5]} 3... Nc6 {[%clk
0:02:55.1]} 4. d4 {[%clk 0:03:03.4]} 4... d5 {[%clk 0:02:56.4]} 5. exd5 {[%clk
0:03:04.6]} 5... Qxd5 {[%clk 0:02:58.3]} 6. c4 {[%clk 0:03:06.3]} 6... bxc3
{[%clk 0:02:58]} 7. Nxc3 {[%clk 0:03:07]} 7... Qd8 {[%clk 0:02:50.6]} 8. d5
{[%clk 0:03:07.5]} 8... Nb8 {[%clk 0:02:47.6]} 9. Bc4 {[%clk 0:03:01.6]} 9...
Nf6 {[%clk 0:02:26.8]} 10. Ne5 {[%clk 0:02:45]} 10... Qc7 {[%clk 0:02:19.7]} 11.
Qd4 {[%clk 0:02:32.9]} 11... e6 {[%clk 0:02:18.6]} 12. Nb5 {[%clk 0:02:28.5]}
12... Bb4+ {[%clk 0:02:09.8]} 13. Ke2 {[%clk 0:02:19.1]} 13... Qd8 {[%clk
0:01:42.4]} 14. dxe6 {[%clk 0:01:56.2]} 14... Qxd4 {[%clk 0:01:39.6]} 15. exf7+
{[%clk 0:01:57.1]} 15... Ke7 {[%clk 0:01:31.8]} 16. Nxd4 {[%clk 0:01:56.5]}
16... Nbd7 {[%clk 0:00:57.7]} 17. Nf5+ {[%clk 0:01:48.5]} 17... Kd8 {[%clk
0:00:58.8]} 18. Nxd7 {[%clk 0:01:26]} 18... Bxd7 {[%clk 0:01:00.7]} 19. Nxg7
{[%clk 0:01:24.1]} 19... Ke7 {[%clk 0:00:50.7]} 20. Bg5 {[%clk 0:01:08.6]} 20...
h6 {[%clk 0:00:51.8]} 21. Bh4 {[%clk 0:01:05]} 21... b5 {[%clk 0:00:44.4]} 22.
Rab1 {[%clk 0:00:54.9]} 22... Bc3 {[%clk 0:00:32.9]} 23. Bd5 {[%clk 0:00:47.1]}
23... Raf8 {[%clk 0:00:16.8]} 24. Nh5 {[%clk 0:00:46.1]} 24... Bg4+ {[%clk
0:00:10.3]} 25. Bf3 {[%clk 0:00:44.9]} 25... Kxf7 {[%clk 0:00:08.1]} 26. Nxf6
{[%clk 0:00:42.3]} 26... Bxf3+ {[%clk 0:00:09.3]} 27. Kxf3 {[%clk 0:00:41.3]}
27... Bxf6 {[%clk 0:00:11.2]} 28. Bxf6 {[%clk 0:00:42.4]} 28... Kxf6 {[%clk
0:00:12.3]} 29. Rxb5 {[%clk 0:00:44]} 29... Ke6+ {[%clk 0:00:13.3]} 30. Ke3
{[%clk 0:00:44.4]} 30... Kd6 {[%clk 0:00:12.4]} 31. Rd1+ {[%clk 0:00:44.8]}
31... Kc6 {[%clk 0:00:13.7]} 32. Re5 {[%clk 0:00:45.4]} 32... Rf6 {[%clk
0:00:12]} 33. f4 {[%clk 0:00:45.9]} 33... Rg8 {[%clk 0:00:12.7]} 34. g3 {[%clk
0:00:47.1]} 34... Rb8 {[%clk 0:00:12.5]} 35. Rc1+ {[%clk 0:00:46.9]} 35... Kd6
{[%clk 0:00:14]} 36. Rc2 {[%clk 0:00:45.2]} 36... Rb1 {[%clk 0:00:14.1]} 37.
Rd2+ {[%clk 0:00:45.7]} 37... Kc6 {[%clk 0:00:15.1]} 38. g4 {[%clk 0:00:42.9]}
38... Re1+ {[%clk 0:00:15.4]} 39. Kd3 {[%clk 0:00:40]} 39... Rd6+ {[%clk
0:00:09.5]} 40. Kc2 {[%clk 0:00:41]} 40... Ra1 {[%clk 0:00:02.4]} 41. Rxd6+
{[%clk 0:00:40.6]} 41... Kxd6 {[%clk 0:00:04.3]} 42. Ra5 {[%clk 0:00:41.9]}
42... Rh1 {[%clk 0:00:05.4]} 43. Ra6+ {[%clk 0:00:42.4]} 43... Kd5 {[%clk
0:00:06.7]} 44. Rxh6 {[%clk 0:00:43.6]} 44... Ke4 {[%clk 0:00:08.4]} 45. f5
{[%clk 0:00:43.3]} 45... Kf4 {[%clk 0:00:09.4]} 46. h3 {[%clk 0:00:41.2]} 1-0

[Event "*** Titled Tuesday Blitz"]
[Site "Chess.com"]
[Date "2019.01.01"]
[Round "10"]
[White "NemtsevIgor"]
[Black "Gr3egor"]
[Result "0-1"]
[WhiteElo "2296"]
[BlackElo "2455"]
[TimeControl "180+2"]
[EndTime "15:22:09 PST"]
[Termination "Gr3egor won by resignation"]

1. d4 {[%clk 0:03:01.9]} 1... Nf6 {[%clk 0:03:00.6]} 2. Nc3 {[%clk 0:03:01.5]}
2... d5 {[%clk 0:03:01.3]} 3. e4 {[%clk 0:03:02.8]} 3... dxe4 {[%clk 0:03:00.6]}
4. Be3 {[%clk 0:03:02.9]} 4... Bf5 {[%clk 0:02:59.7]} 5. f3 {[%clk 0:03:03.9]}
5... exf3 {[%clk 0:03:00.3]} 6. Nxf3 {[%clk 0:03:04.5]} 6... e6 {[%clk 0:03:02]}
7. Bd3 {[%clk 0:03:02.9]} 7... Bxd3 {[%clk 0:03:03]} 8. Qxd3 {[%clk 0:03:04]}
8... Bd6 {[%clk 0:03:03.5]} 9. O-O {[%clk 0:03:04.9]} 9... c6 {[%clk 0:03:04.2]}
10. Rae1 {[%clk 0:03:00.7]} 10... Qc7 {[%clk 0:03:04.1]} 11. Ne5 {[%clk
0:02:50.8]} 11... Nbd7 {[%clk 0:03:02.4]} 12. Bf4 {[%clk 0:02:44.3]} 12... Rd8
{[%clk 0:02:59.8]} 13. Qe2 {[%clk 0:02:26.7]} 13... Nxe5 {[%clk 0:02:30.1]} 14.
dxe5 {[%clk 0:02:24.8]} 14... Bc5+ {[%clk 0:02:31.6]} 15. Kh1 {[%clk 0:02:23.9]}
15... Nd5 {[%clk 0:02:32.8]} 16. Bg5 {[%clk 0:02:05.6]} 16... Rd7 {[%clk
0:02:32.2]} 17. Ne4 {[%clk 0:02:03.8]} 17... Bf8 {[%clk 0:02:33.5]} 18. c4
{[%clk 0:02:01.4]} 18... Nb4 {[%clk 0:02:20.7]} 19. Rf3 {[%clk 0:01:28.4]} 19...
Qxe5 {[%clk 0:02:05.7]} 20. a3 {[%clk 0:01:16]} 20... Na6 {[%clk 0:02:03.7]} 21.
b4 {[%clk 0:01:16.7]} 21... Be7 {[%clk 0:01:59.6]} 22. Bxe7 {[%clk 0:01:14.5]}
22... Rxe7 {[%clk 0:02:01.5]} 23. c5 {[%clk 0:01:09.6]} 23... O-O {[%clk
0:01:58.2]} 24. Re3 {[%clk 0:01:09.7]} 24... Rd8 {[%clk 0:01:48.5]} 25. Nd6
{[%clk 0:01:09.6]} 25... Qg5 {[%clk 0:01:41]} 26. Rg3 {[%clk 0:00:57.3]} 26...
Qf6 {[%clk 0:01:37.1]} 27. Rf1 {[%clk 0:00:50.3]} 27... Qd4 {[%clk 0:01:25.9]}
28. Rgf3 {[%clk 0:00:46]} 28... Rdd7 {[%clk 0:01:21.6]} 29. Nxb7 {[%clk
0:00:44.7]} 29... Nxb4 {[%clk 0:01:12.2]} 30. Na5 {[%clk 0:00:38.6]} 30... Nd5
{[%clk 0:00:49.1]} 31. Nxc6 {[%clk 0:00:37.7]} 31... Qxc5 {[%clk 0:00:50.7]} 32.
Nxe7+ {[%clk 0:00:38.2]} 32... Rxe7 {[%clk 0:00:52.6]} 33. Qb2 {[%clk
0:00:35.1]} 33... g6 {[%clk 0:00:46.6]} 34. Rc1 {[%clk 0:00:35.5]} 34... Rb7
{[%clk 0:00:30.9]} 35. Qa1 {[%clk 0:00:21.5]} 35... Qf8 {[%clk 0:00:24.7]} 36.
h3 {[%clk 0:00:21.2]} 36... Rc7 {[%clk 0:00:15.7]} 37. Qe5 {[%clk 0:00:22.1]}
37... Rxc1+ {[%clk 0:00:16]} 38. Kh2 {[%clk 0:00:23.5]} 38... Qd8 {[%clk
0:00:15]} 39. h4 {[%clk 0:00:24]} 39... Qc7 {[%clk 0:00:12.1]} 40. Qxc7 {[%clk
0:00:25]} 40... Rxc7 {[%clk 0:00:14]} 41. Rb3 {[%clk 0:00:26.1]} 41... Kg7
{[%clk 0:00:15.1]} 42. Rb5 {[%clk 0:00:26.6]} 42... h5 {[%clk 0:00:16.2]} 43. g3
{[%clk 0:00:27.2]} 43... Rc2+ {[%clk 0:00:17.2]} 44. Kh3 {[%clk 0:00:28.4]}
44... Rc3 {[%clk 0:00:18.7]} 45. a4 {[%clk 0:00:29.6]} 45... Nf4+ {[%clk
0:00:19.7]} 46. Kh2 {[%clk 0:00:30.1]} 46... Rc2+ {[%clk 0:00:21.3]} 47. Kh1
{[%clk 0:00:30.3]} 47... Nd5 {[%clk 0:00:21.2]} 48. a5 {[%clk 0:00:30.8]} 48...
Ra2 {[%clk 0:00:21]} 0-1

[Event "*** Titled Tuesday Blitz"]
[Site "Chess.com"]
[Date "2019.01.01"]
[Round "10"]
[White "G_Threepwood"]
[Black "TrimitziosP7"]
[Result "0-1"]
[WhiteElo "2526"]
[BlackElo "2659"]
[TimeControl "180+2"]
[EndTime "15:22:13 PST"]
[Termination "TrimitziosP7 won by checkmate"]

1. e4 {[%clk 0:03:01.9]} 1... c5 {[%clk 0:03:00.2]} 2. Nc3 {[%clk 0:03:02.6]}
2... Nc6 {[%clk 0:02:57.9]} 3. Nge2 {[%clk 0:03:03.3]} 3... Nf6 {[%clk
0:02:42.6]} 4. d4 {[%clk 0:03:02.9]} 4... cxd4 {[%clk 0:02:40.9]} 5. Nxd4 {[%clk
0:03:04.8]} 5... e5 {[%clk 0:02:42]} 6. Ndb5 {[%clk 0:03:06.2]} 6... d6 {[%clk
0:02:39.8]} 7. Nd5 {[%clk 0:03:07.6]} 7... Nxd5 {[%clk 0:02:32.5]} 8. exd5
{[%clk 0:03:09.5]} 8... Nb8 {[%clk 0:02:34]} 9. a4 {[%clk 0:03:10.6]} 9... Be7
{[%clk 0:02:28.3]} 10. Be2 {[%clk 0:03:10.3]} 10... O-O {[%clk 0:02:26.5]} 11.
O-O {[%clk 0:03:11.8]} 11... f5 {[%clk 0:02:21.4]} 12. f4 {[%clk 0:03:12]} 12...
a6 {[%clk 0:02:18.8]} 13. Na3 {[%clk 0:03:12.6]} 13... Nd7 {[%clk 0:02:17.2]}
14. Nc4 {[%clk 0:03:11.3]} 14... exf4 {[%clk 0:02:13.4]} 15. Bxf4 {[%clk
0:03:09.8]} 15... Nb6 {[%clk 0:02:14.7]} 16. a5 {[%clk 0:02:51.7]} 16... Nxc4
{[%clk 0:02:11.6]} 17. Bxc4 {[%clk 0:02:53.6]} 17... Bf6 {[%clk 0:02:12.6]} 18.
c3 {[%clk 0:02:51.9]} 18... Qc7 {[%clk 0:02:07.8]} 19. Qd3 {[%clk 0:02:40.1]}
19... Bd7 {[%clk 0:02:02.8]} 20. Be3 {[%clk 0:02:28]} 20... Rae8 {[%clk
0:01:54.5]} 21. Bb6 {[%clk 0:02:27.4]} 21... Qc8 {[%clk 0:01:55.4]} 22. Rae1
{[%clk 0:02:25.5]} 22... Be5 {[%clk 0:01:54.6]} 23. Bd4 {[%clk 0:02:10.9]} 23...
Kh8 {[%clk 0:01:47.2]} 24. Bxe5 {[%clk 0:01:59.3]} 24... dxe5 {[%clk 0:01:49.1]}
25. b4 {[%clk 0:01:52.7]} 25... Qd8 {[%clk 0:01:33.9]} 26. Ba2 {[%clk
0:01:45.5]} 26... Qf6 {[%clk 0:01:31.2]} 27. c4 {[%clk 0:01:35.9]} 27... e4
{[%clk 0:01:31.4]} 28. Qd2 {[%clk 0:01:37]} 28... f4 {[%clk 0:01:29.1]} 29. Bb1
{[%clk 0:01:23.7]} 29... e3 {[%clk 0:01:29]} 30. Qd3 {[%clk 0:01:17]} 30... g6
{[%clk 0:01:27.7]} 31. b5 {[%clk 0:01:03.7]} 31... Qe5 {[%clk 0:01:22.2]} 32.
Qb3 {[%clk 0:00:41.1]} 32... g5 {[%clk 0:00:58.1]} 33. bxa6 {[%clk 0:00:38.4]}
33... bxa6 {[%clk 0:00:58.4]} 34. c5 {[%clk 0:00:39.2]} 34... Rb8 {[%clk
0:00:55.3]} 35. Qd1 {[%clk 0:00:27.6]} 35... Rb2 {[%clk 0:00:40]} 36. Qh5 {[%clk
0:00:20.2]} 36... Bf5 {[%clk 0:00:26.8]} 37. Bxf5 {[%clk 0:00:21.4]} 37... Rxf5
{[%clk 0:00:20.5]} 38. d6 {[%clk 0:00:17.3]} 38... Qe4 {[%clk 0:00:13.1]} 39.
Qh3 {[%clk 0:00:07.1]} 39... Rxc5 {[%clk 0:00:11.4]} 40. d7 {[%clk 0:00:06.2]}
40... Rd2 {[%clk 0:00:09.4]} 41. Qh6 {[%clk 0:00:06.6]} 41... Qxg2# {[%clk
0:00:07]} 0-1

[Event "*** Titled Tuesday Blitz"]
[Site "Chess.com"]
[Date "2019.01.01"]
[Round "10"]
[White "Iyael"]
[Black "ElenaPershina"]
[Result "1-0"]
[WhiteElo "2156"]
[BlackElo "1911"]
[TimeControl "180+2"]
[EndTime "15:22:14 PST"]
[Termination "Iyael won by resignation"]

1. e4 {[%clk 0:02:56.7]} 1... e5 {[%clk 0:02:59.2]} 2. Nf3 {[%clk 0:02:56.6]}
2... Nc6 {[%clk 0:02:59.4]} 3. Nc3 {[%clk 0:02:57.3]} 3... Bc5 {[%clk 0:02:59]}
4. Nxe5 {[%clk 0:02:42.5]} 4... Bxf2+ {[%clk 0:02:44.4]} 5. Kxf2 {[%clk
0:02:42.8]} 5... Nxe5 {[%clk 0:02:46.3]} 6. d4 {[%clk 0:02:42.8]} 6... Ng6
{[%clk 0:02:44.3]} 7. Bc4 {[%clk 0:02:37.3]} 7... N8e7 {[%clk 0:02:38.8]} 8. Rf1
{[%clk 0:02:35.5]} 8... O-O {[%clk 0:02:39.6]} 9. Kg1 {[%clk 0:02:36.5]} 9... c6
{[%clk 0:02:38]} 10. Bg5 {[%clk 0:02:30.6]} 10... h6 {[%clk 0:02:24.7]} 11. Be3
{[%clk 0:02:30.5]} 11... d5 {[%clk 0:02:24.8]} 12. Bd3 {[%clk 0:02:27.1]} 12...
dxe4 {[%clk 0:02:14.1]} 13. Bxe4 {[%clk 0:02:27.4]} 13... Nd5 {[%clk 0:02:15.6]}
14. Nxd5 {[%clk 0:02:24.3]} 14... cxd5 {[%clk 0:02:16.3]} 15. Bd3 {[%clk
0:02:25]} 15... Be6 {[%clk 0:02:13.5]} 16. c3 {[%clk 0:02:22.1]} 16... Qd7
{[%clk 0:02:10.4]} 17. Qd2 {[%clk 0:02:22.2]} 17... Kh7 {[%clk 0:02:10.5]} 18.
Rf2 {[%clk 0:02:14.5]} 18... Rfe8 {[%clk 0:01:53.4]} 19. Raf1 {[%clk 0:02:14.4]}
19... a6 {[%clk 0:01:47.8]} 20. h4 {[%clk 0:02:10]} 20... h5 {[%clk 0:01:40.1]}
21. Bb1 {[%clk 0:01:56.9]} 21... Re7 {[%clk 0:01:36.4]} 22. Bg5 {[%clk
0:01:57.3]} 22... Ree8 {[%clk 0:01:31.3]} 23. Qd3 {[%clk 0:01:56.2]} 23... b5
{[%clk 0:01:22.8]} 24. a3 {[%clk 0:01:55.8]} 24... Kg8 {[%clk 0:01:18.3]} 25.
Qg3 {[%clk 0:01:54.5]} 25... Ra7 {[%clk 0:01:03.7]} 26. Bc1 {[%clk 0:01:53.1]}
26... Nf8 {[%clk 0:00:47.1]} 27. Qg5 {[%clk 0:01:49.7]} 27... g6 {[%clk
0:00:34.1]} 28. Bf4 {[%clk 0:01:48]} 28... Nh7 {[%clk 0:00:21.2]} 29. Qg3 {[%clk
0:01:47.3]} 29... Bf5 {[%clk 0:00:19.9]} 30. Be5 {[%clk 0:01:45.1]} 30... Bxb1
{[%clk 0:00:20.2]} 31. Rxb1 {[%clk 0:01:45.4]} 31... Qe7 {[%clk 0:00:18.7]} 32.
Rbf1 {[%clk 0:01:45.1]} 32... Qf8 {[%clk 0:00:19.4]} 33. Rf3 {[%clk 0:01:31.3]}
33... Rd8 {[%clk 0:00:17.8]} 34. Qf2 {[%clk 0:01:30.6]} 34... Rdd7 {[%clk
0:00:18.3]} 35. Qe3 {[%clk 0:01:27.7]} 35... Rab7 {[%clk 0:00:15.2]} 36. Qd2
{[%clk 0:01:28]} 36... Ra7 {[%clk 0:00:15.9]} 37. Bf4 {[%clk 0:01:28.8]} 37...
Rab7 {[%clk 0:00:16.2]} 38. Bh6 {[%clk 0:01:29.6]} 38... Qe8 {[%clk 0:00:16]}
39. Qf4 {[%clk 0:01:29.4]} 39... Re7 {[%clk 0:00:16]} 40. Qg3 {[%clk 0:01:28]}
40... Ra7 {[%clk 0:00:15.6]} 41. Kh2 {[%clk 0:01:26.2]} 41... Ra8 {[%clk
0:00:15.4]} 42. Bf4 {[%clk 0:01:23.8]} 42... Raa7 {[%clk 0:00:16]} 43. Be5
{[%clk 0:01:24.6]} 43... Red7 {[%clk 0:00:15]} 44. Qf4 {[%clk 0:01:22.9]} 44...
Qf8 {[%clk 0:00:15.7]} 45. g4 {[%clk 0:01:23.5]} 45... hxg4 {[%clk 0:00:16.4]}
46. Qxg4 {[%clk 0:01:24.4]} 46... Qh6 {[%clk 0:00:16.7]} 47. Bf4 {[%clk
0:01:24.5]} 47... Qf8 {[%clk 0:00:17.5]} 48. Bd2 {[%clk 0:01:23.7]} 48... Rab7
{[%clk 0:00:16.9]} 49. h5 {[%clk 0:01:23.5]} 49... Rb6 {[%clk 0:00:15.8]} 50.
Qxd7 {[%clk 0:01:21.4]} 50... gxh5 {[%clk 0:00:13.2]} 51. Rxf7 {[%clk
0:01:20.6]} 51... Qb8+ {[%clk 0:00:12.9]} 52. Bf4 {[%clk 0:01:18.6]} 1-0

[Event "*** Titled Tuesday Blitz"]
[Site "Chess.com"]
[Date "2019.01.01"]
[Round "10"]
[White "MFguimaraes"]
[Black "IakovUlivar"]
[Result "0-1"]
[WhiteElo "2306"]
[BlackElo "2496"]
[TimeControl "180+2"]
[EndTime "15:22:17 PST"]
[Termination "IakovUlivar won by checkmate"]

1. e4 {[%clk 0:03:01.9]} 1... e6 {[%clk 0:02:59.5]} 2. d4 {[%clk 0:03:02.6]}
2... d5 {[%clk 0:03:00.7]} 3. Bd3 {[%clk 0:03:03.6]} 3... dxe4 {[%clk
0:02:58.7]} 4. Bxe4 {[%clk 0:03:05.5]} 4... Nf6 {[%clk 0:02:50.7]} 5. Bf3 {[%clk
0:03:06.3]} 5... Bd6 {[%clk 0:02:38.5]} 6. Ne2 {[%clk 0:03:02.8]} 6... O-O
{[%clk 0:02:39.7]} 7. O-O {[%clk 0:03:00.6]} 7... Nbd7 {[%clk 0:02:34.2]} 8. c4
{[%clk 0:02:57.6]} 8... c6 {[%clk 0:02:32.2]} 9. Nbc3 {[%clk 0:02:57.8]} 9... e5
{[%clk 0:02:31.2]} 10. d5 {[%clk 0:02:54.7]} 10... c5 {[%clk 0:02:26.5]} 11. Bg5
{[%clk 0:02:34.9]} 11... h6 {[%clk 0:01:49.4]} 12. Bh4 {[%clk 0:02:33.8]} 12...
g5 {[%clk 0:01:46.8]} 13. Bg3 {[%clk 0:02:32.7]} 13... Re8 {[%clk 0:01:41.5]}
14. Qc2 {[%clk 0:02:11.8]} 14... Nf8 {[%clk 0:01:40.3]} 15. Rfe1 {[%clk
0:02:07.2]} 15... Ng6 {[%clk 0:01:36.6]} 16. Ne4 {[%clk 0:02:04.4]} 16... g4
{[%clk 0:01:10.5]} 17. Nxf6+ {[%clk 0:02:03.8]} 17... Qxf6 {[%clk 0:01:12.4]}
18. Be4 {[%clk 0:02:04.7]} 18... Kg7 {[%clk 0:01:10.9]} 19. f3 {[%clk
0:01:48.7]} 19... Qg5 {[%clk 0:01:05.8]} 20. Qc3 {[%clk 0:01:43.9]} 20... f5
{[%clk 0:01:02.9]} 21. f4 {[%clk 0:01:31.9]} 21... Qf6 {[%clk 0:01:00.8]} 22.
fxe5 {[%clk 0:01:32.8]} 22... Bxe5 {[%clk 0:00:49.7]} 23. Bxe5 {[%clk
0:01:33.9]} 23... Rxe5 {[%clk 0:00:48.1]} 24. Bc2 {[%clk 0:01:15.6]} 24... Bd7
{[%clk 0:00:44.7]} 25. Nf4 {[%clk 0:00:58.4]} 25... Rxe1+ {[%clk 0:00:39.4]} 26.
Rxe1 {[%clk 0:00:58.6]} 26... Nxf4 {[%clk 0:00:20.1]} 27. Re7+ {[%clk
0:00:54.3]} 27... Kg6 {[%clk 0:00:21.4]} 28. Qxf6+ {[%clk 0:00:53.1]} 28... Kxf6
{[%clk 0:00:23.3]} 29. Rxd7 {[%clk 0:00:53.7]} 29... Ne2+ {[%clk 0:00:22.9]} 30.
Kf2 {[%clk 0:00:52.4]} 30... Nd4 {[%clk 0:00:24.8]} 31. Bd3 {[%clk 0:00:50.9]}
31... Rb8 {[%clk 0:00:15.5]} 32. Rd6+ {[%clk 0:00:48.2]} 32... Kg5 {[%clk
0:00:16.2]} 33. a4 {[%clk 0:00:39.1]} 33... h5 {[%clk 0:00:16.5]} 34. g3 {[%clk
0:00:39]} 34... h4 {[%clk 0:00:17]} 35. Rd7 {[%clk 0:00:39.1]} 35... h3 {[%clk
0:00:12.5]} 36. Rg7+ {[%clk 0:00:37]} 36... Kf6 {[%clk 0:00:13.2]} 37. Rc7
{[%clk 0:00:35.2]} 37... Ke5 {[%clk 0:00:09.1]} 38. Re7+ {[%clk 0:00:26.7]}
38... Kd6 {[%clk 0:00:04.3]} 39. Rf7 {[%clk 0:00:25.4]} 39... Ke5 {[%clk
0:00:04.7]} 40. Re7+ {[%clk 0:00:26.1]} 40... Kf6 {[%clk 0:00:06]} 41. Rc7
{[%clk 0:00:26.3]} 41... b6 {[%clk 0:00:05.6]} 42. Ke3 {[%clk 0:00:21.7]} 42...
Re8+ {[%clk 0:00:03.3]} 43. Kf4 {[%clk 0:00:21.2]} 43... Ne2+ {[%clk 0:00:03.6]}
44. Bxe2 {[%clk 0:00:21.9]} 44... Re4# {[%clk 0:00:05]} 0-1